[Event "58th Akiba Rubinstein A 2022"]
[Site "Polanica-Zdroj"]
[Date "2022.08.19"]
[Round "7.9"]
[White "Nowak, Filip"]
[Black "Betkowski, Andrzej"]
[Result "1/2-1/2"]
[ECO "C10"]
[WhiteElo "1957"]
[BlackElo "2063"]
[Annotator "NA RC"]
[PlyCount "99"]
[EventDate "2022.08.13"]
[EventCountry "POL"]
[SourceTitle "playchess.com"]
[Source "ChessBase"]
[SourceQuality "1"]
[TimeControl "40/5400+30:1800+30"]

1. e4 {[%emt 0:00:02]} e6 {[%emt 0:00:06]} 2. d4 {[%emt 0:00:16]} d5 {[%emt 0:00:08]} 3. Nc3 {[%emt 0:00:09]} Nc6 {[%emt 0:00:30]} 4. Nf3 {[%emt 0:00:09]} Nf6 {[%emt 0:00:16]} 5. Bd3 {[%emt 0:00:07]} Nb4 {[%emt 0:02:33]} 6. Bg5 {[%emt 0:00:23]} Be7 {[%emt 0:04:04]} 7. e5 {[%emt 0:00:15]} Nxd3+ {[%emt 0:03:42]} 8. cxd3 {[%emt 0:00:09]} Nd7 {[%emt 0:03:06]} 9. Bxe7 {[%emt 0:00:07]} Qxe7 {[%emt 0:00:21]} 10. O-O {[%emt 0:00:22]} a6 {[%emt 0:06:29]} 11. Qa4 {[%emt 0:07:32]} O-O {[%emt 0:06:17]} 12. Rac1 {[%emt 0:06:57]} c6 {[%emt 0:16:50]} 13. Qc2 {[%emt 0:11:44]} b5 {[%emt 0:05:59]} 14. a4 {[%emt 0:01:31]} Bb7 {[%emt 0:01:20]} 15. Na2 {[%emt 0:05:30]} b4 {[%emt 0:16:57]} 16. a5 {[%emt 0:15:32]} Rab8 {[%emt 0:00:50]} 17. Qa4 {[%emt 0:06:24]} Ba8 {[%emt 0:06:38]} 18. Nd2 {[%emt 0:08:03]} Rb5 {[%emt 0:05:40]} 19. Nb3 {[%emt 0:03:27]} Rfb8 {[%emt 0:00:53]} 20. Rfd1 {[%emt 0:11:00]} f6 {[%emt 0:02:01]} 21. f4 {[%emt 0:02:25]} fxe5 {[%emt 0:01:42]} 22. fxe5 {[%emt 0:00:01]} c5 {[%emt 0:02:30]} 23. Nxc5 {[%emt 0:01:55]} Nxc5 {[%emt 0:01:31]} 24. dxc5 {[%emt 0:02:10]} b3 {[%emt 0:06:12]} 25. Nc3 {[%emt 0:00:59]} Qxc5+ {[%emt 0:01:31]} 26. d4 {[%emt 0:01:37]} Qb4 {[%emt 0:01:09]} 27. Ra1 {[%emt 0:01:33]} Qxa4 {[%emt 0:00:44]} 28. Nxa4 {[%emt 0:00:42]} Rxa5 {[%emt 0:01:30]} 29. Nc5 {[%emt 0:00:13]} Ra2 {[%emt 0:01:05]} 30. Nxa6 {[%emt 0:01:11]} Rc8 {[%emt 0:01:35]} 31. Rxa2 {[%emt 0:04:53]} bxa2 {[%emt 0:00:02]} 32. Ra1 {[%emt 0:00:08]} Rc4 {[%emt 0:00:12]} 33. Rxa2 {[%emt 0:00:12]} Rxd4 {[%emt 0:00:10]} 34. Nc5 {[%emt 0:04:39]} Bc6 {[%emt 0:00:31]} 35. Nxe6 {[%emt 0:00:23]} Rd1+ {[%emt 0:00:44]} 36. Kf2 {[%emt 0:00:01]} Rd2+ {[%emt 0:00:25]} 37. Kg3 {[%emt 0:00:15]} d4 {[%emt 0:00:30]} 38. Ra6 {[%emt 0:03:00]} Rxg2+ {[%emt 0:01:36]} 39. Kh3 {[%emt 0:00:49]} Be4 {[%emt 0:00:08]} 40. Nxd4 {[%emt 0:00:00]} g5 {[%emt 0:00:00]} 41. e6 {[%emt 0:02:49]} g4+ {[%emt 0:06:40]} 42. Kh4 {[%emt 0:00:02]} Rxh2+ {[%emt 0:00:22]} 43. Kg5 {[%emt 0:01:22]} Rxb2 {[%emt 0:05:19]} 44. Kf6 {[%emt 0:04:52]} Rf2+ {[%emt 0:04:45]} 45. Ke5 {[%emt 0:00:24]} Bg6 {[%emt 0:01:22]} 46. Ra8+ {[%emt 0:02:11]} Rf8 {[%emt 0:03:25]} 47. Ra1 {[%emt 0:06:38]} Rf2 {[%emt 0:04:09]} 48. Ra8+ {[%emt 0:01:08]} Rf8 {[%emt 0:00:10]} 49. Ra1 {[%emt 0:08:45]} Rf2 {[%emt 0:00:09]} 50. Ra8+ {[%emt 0:04:37]} 1/2-1/2

[Event "58th Akiba Rubinstein A 2022"]
[Site "Polanica-Zdroj"]
[Date "2022.08.19"]
[Round "7.10"]
[White "Rog, Bartlomiej"]
[Black "Kasprzak, Lukasz"]
[Result "1/2-1/2"]
[ECO "B24"]
[WhiteElo "2091"]
[BlackElo "1938"]
[Annotator "NA RC"]
[PlyCount "31"]
[EventDate "2022.08.13"]
[EventCountry "POL"]
[SourceTitle "playchess.com"]
[Source "ChessBase"]
[SourceQuality "1"]
[TimeControl "40/5400+30:1800+30"]

1. e4 c5 {[%emt 0:03:44]} 2. Nc3 {[%emt 0:00:09]} Nc6 {[%emt 0:00:53]} 3. Bb5 {[%emt 0:00:08]} Nd4 {[%emt 0:03:40]} 4. Nf3 {[%emt 0:00:09]} a6 {[%emt 0:11:48]} 5. Bd3 {[%emt 0:00:10]} d6 {[%emt 0:02:04]} 6. Nxd4 {[%emt 0:00:51]} cxd4 {[%emt 0:00:07]} 7. Ne2 {[%emt 0:00:07]} e5 {[%emt 0:00:29]} 8. c3 {[%emt 0:00:09]} dxc3 {[%emt 0:03:13]} 9. dxc3 {[%emt 0:00:11]} Nf6 {[%emt 0:03:54]} 10. O-O {[%emt 0:06:47]} Be7 {[%emt 0:02:38]} 11. c4 {[%emt 0:03:32]} O-O {[%emt 0:06:04]} 12. Nc3 {[%emt 0:01:48]} Be6 {[%emt 0:02:47]} 13. a4 {[%emt 0:03:35]} Rc8 {[%emt 0:04:51]} 14. Qe2 {[%emt 0:09:56]} g6 {[%emt 0:02:59]} 15. f4 {[%emt 0:02:51]} exf4 {[%emt 0:09:06]} 16. Bxf4 {[%emt 0:01:30]} 1/2-1/2

[Event "58th Akiba Rubinstein A 2022"]
[Site "Polanica-Zdroj"]
[Date "2022.08.19"]
[Round "7.11"]
[White "Paprocki, Antoni"]
[Black "Motyl, Tomasz"]
[Result "1/2-1/2"]
[ECO "A57"]
[WhiteElo "1981"]
[BlackElo "1936"]
[Annotator "NA RC"]
[PlyCount "32"]
[EventDate "2022.08.13"]
[EventCountry "POL"]
[SourceTitle "playchess.com"]
[Source "ChessBase"]
[SourceQuality "1"]
[TimeControl "40/5400+30:1800+30"]

1. d4 {[%emt 0:00:03]} Nf6 {[%emt 0:00:59]} 2. c4 {[%emt 0:00:06]} c5 {[%emt 0:00:46]} 3. d5 {[%emt 0:00:11]} b5 {[%emt 0:00:08]} 4. cxb5 {[%emt 0:00:22]} a6 {[%emt 0:00:03]} 5. e3 {[%emt 0:00:08]} g6 {[%emt 0:17:10]} 6. Nc3 {[%emt 0:00:16]} d6 {[%emt 0:03:22]} 7. Nf3 {[%emt 0:01:26]} Bg7 {[%emt 0:00:28]} 8. a4 {[%emt 0:01:23]} O-O {[%emt 0:00:41]} 9. e4 {[%emt 0:00:45]} axb5 {[%emt 0:06:44]} 10. Bxb5 {[%emt 0:00:09]} Ba6 {[%emt 0:00:38]} 11. Bd2 {[%emt 0:00:32]} Bxb5 {[%emt 0:01:32]} 12. axb5 {[%emt 0:00:07]} Nbd7 {[%emt 0:01:17]} 13. O-O {[%emt 0:01:37]} Qb6 {[%emt 0:05:20]} 14. h3 Rfb8 {[%emt 0:03:42]} 15. Ra3 {[%emt 0:41:45]} Ne8 {[%emt 0:03:27]} 16. Qc2 {[%emt 0:09:04]} Nc7 {[%emt 0:01:18]} 1/2-1/2

[Event "58th Akiba Rubinstein A 2022"]
[Site "Polanica-Zdroj"]
[Date "2022.08.19"]
[Round "7.12"]
[White "Kazmierowski, Tymon"]
[Black "Wolanski, Michal"]
[Result "1-0"]
[ECO "A46"]
[WhiteElo "1961"]
[BlackElo "2005"]
[Annotator "NA RC"]
[PlyCount "81"]
[EventDate "2022.08.13"]
[EventCountry "POL"]
[SourceTitle "playchess.com"]
[Source "ChessBase"]
[SourceQuality "1"]
[TimeControl "40/5400+30:1800+30"]

1. d4 {[%emt 0:00:03]} Nf6 {[%emt 0:00:08]} 2. Nf3 {[%emt 0:00:05]} c5 {[%emt 0:00:10]} 3. e3 {[%emt 0:00:05]} e6 {[%emt 0:00:16]} 4. c4 {[%emt 0:00:11]} cxd4 {[%emt 0:01:06]} 5. exd4 {[%emt 0:00:05]} d5 {[%emt 0:00:22]} 6. Nc3 {[%emt 0:00:38]} Be7 {[%emt 0:00:56]} 7. c5 {[%emt 0:01:27]} O-O {[%emt 0:00:11]} 8. Bd3 {[%emt 0:01:00]} b6 {[%emt 0:00:24]} 9. b4 {[%emt 0:00:18]} bxc5 {[%emt 0:00:42]} 10. bxc5 {[%emt 0:00:23]} Nc6 {[%emt 0:01:13]} 11. O-O {[%emt 0:03:25]} Nd7 {[%emt 0:02:00]} 12. Bf4 {[%emt 0:06:30]} Bf6 {[%emt 0:02:23]} 13. Bb5 {[%emt 0:07:17]} Bb7 {[%emt 0:00:32]} 14. Bd6 {[%emt 0:02:10]} Re8 {[%emt 0:00:39]} 15. Qa4 {[%emt 0:00:33]} Nb6 {[%emt 0:03:53]} 16. Qa3 {[%emt 0:14:38]} Nc4 {[%emt 0:04:56]} 17. Bxc4 {[%emt 0:05:00]} dxc4 {[%emt 0:00:09]} 18. Rab1 {[%emt 0:02:00]} Qa5 {[%emt 0:08:02]} 19. Qxa5 {[%emt 0:04:33]} Nxa5 {[%emt 0:00:09]} 20. Ne5 {[%emt 0:00:27]} Ba6 {[%emt 0:04:25]} 21. Nb5 {[%emt 0:06:58]} Bd8 {[%emt 0:07:12]} 22. Rfc1 {[%emt 0:06:28]} f6 {[%emt 0:06:01]} 23. Nxc4 {[%emt 0:01:08]} Nc6 {[%emt 0:01:13]} 24. Rd1 {[%emt 0:02:54]} Be7 {[%emt 0:04:58]} 25. a4 {[%emt 0:10:21]} Red8 {[%emt 0:03:44]} 26. Ne3 {[%emt 0:02:57]} Bxd6 {[%emt 0:03:19]} 27. Nxd6 {[%emt 0:00:27]} Rab8 {[%emt 0:00:43]} 28. d5 {[%emt 0:01:30]} exd5 {[%emt 0:02:05]} 29. Nxd5 {[%emt 0:01:43]} Kf8 {[%emt 0:05:55]} 30. Nc7 {[%emt 0:05:39]} Bc8 {[%emt 0:02:40]} 31. Rxb8 {[%emt 0:03:31]} Nxb8 {[%emt 0:00:10]} 32. f3 {[%emt 0:00:33]} Bd7 {[%emt 0:03:52]} 33. Ncb5 {[%emt 0:05:05]} Bc6 {[%emt 0:02:47]} 34. Nd4 {[%emt 0:01:05]} Bd7 {[%emt 0:08:08]} 35. Rb1 {[%emt 0:03:41]} Nc6 {[%emt 0:02:13]} 36. Nxc6 {[%emt 0:00:17]} Bxc6 {[%emt 0:00:08]} 37. a5 {[%emt 0:00:15]} Ke7 {[%emt 0:01:24]} 38. Kf2 {[%emt 0:00:20]} Rd7 {[%emt 0:01:16]} 39. Re1+ {[%emt 0:00:29]} Kd8 {[%emt 0:00:13]} 40. Re8+ {[%emt 0:00:00]} Kc7 {[%emt 0:00:00]} 41. Rc8# {[%emt 0:00:08]} 1-0

[Event "58th Akiba Rubinstein A 2022"]
[Site "Polanica-Zdroj"]
[Date "2022.08.19"]
[Round "7.13"]
[White "Hetzer, Volkhard"]
[Black "Czechowski, Jakub"]
[Result "1/2-1/2"]
[ECO "D79"]
[WhiteElo "1921"]
[BlackElo "2003"]
[Annotator "NA RC"]
[PlyCount "35"]
[EventDate "2022.08.13"]
[EventCountry "POL"]
[SourceTitle "playchess.com"]
[Source "ChessBase"]
[SourceQuality "1"]
[TimeControl "40/5400+30:1800+30"]

1. Nf3 {[%emt 0:01:07]} Nf6 {[%emt 0:00:13]} 2. d4 {[%emt 0:00:51]} g6 {[%emt 0:00:07]} 3. g3 {[%emt 0:00:30]} Bg7 {[%emt 0:00:07]} 4. Bg2 {[%emt 0:00:07]} O-O {[%emt 0:00:34]} 5. O-O {[%emt 0:00:06]} d5 {[%emt 0:00:12]} 6. c4 {[%emt 0:00:45]} c6 {[%emt 0:00:04]} 7. cxd5 {[%emt 0:04:54]} cxd5 {[%emt 0:00:14]} 8. Ne5 {[%emt 0:00:09]} e6 {[%emt 0:00:13]} 9. Nc3 {[%emt 0:00:17]} Nfd7 {[%emt 0:05:18]} 10. f4 {[%emt 0:00:29]} Nc6 {[%emt 0:00:16]} 11. Be3 {[%emt 0:03:29]} f6 {[%emt 0:21:13]} 12. Nxd7 Bxd7 13. Bf2 {[%emt 0:09:13]} f5 {[%emt 0:02:28]} 14. e3 {[%emt 0:04:37]} Kh8 {[%emt 0:01:57]} 15. Rc1 {[%emt 0:04:04]} Na5 {[%emt 0:08:28]} 16. Qe2 {[%emt 0:15:37]} Rc8 {[%emt 0:01:22]} 17. Rfd1 {[%emt 0:02:46]} Qe7 {[%emt 0:02:48]} 18. Be1 {[%emt 0:00:21]} 1/2-1/2

[Event "58th Akiba Rubinstein A 2022"]
[Site "Polanica-Zdroj"]
[Date "2022.08.19"]
[Round "7.14"]
[White "Smietanska, Wiktoria"]
[Black "Iwanczuk, Krzysztof"]
[Result "1/2-1/2"]
[ECO "B51"]
[WhiteElo "1919"]
[BlackElo "1947"]
[Annotator "NA RC"]
[PlyCount "53"]
[EventDate "2022.08.13"]
[EventCountry "POL"]
[SourceTitle "playchess.com"]
[Source "ChessBase"]
[SourceQuality "1"]
[TimeControl "40/5400+30:1800+30"]

1. e4 {[%emt 0:00:01]} c5 {[%emt 0:00:09]} 2. Nf3 {[%emt 0:00:07]} d6 {[%emt 0:00:11]} 3. Bb5+ {[%emt 0:00:07]} Nd7 {[%emt 0:00:08]} 4. Ba4 {[%emt 0:00:06]} Ngf6 {[%emt 0:01:07]} 5. O-O {[%emt 0:00:09]} Nxe4 {[%emt 0:13:12]} 6. Re1 {[%emt 0:00:17]} Nef6 {[%emt 0:00:22]} 7. d4 {[%emt 0:00:08]} cxd4 {[%emt 0:01:21]} 8. Nxd4 {[%emt 0:00:07]} e6 {[%emt 0:19:11]} 9. Nb5 {[%emt 0:01:28]} a6 {[%emt 0:01:13]} 10. Nxd6+ {[%emt 0:01:45]} Bxd6 {[%emt 0:00:07]} 11. Qxd6 {[%emt 0:00:08]} Qe7 {[%emt 0:00:40]} 12. Bf4 {[%emt 0:08:31]} Qxd6 {[%emt 0:01:30]} 13. Bxd6 {[%emt 0:00:11]} b5 {[%emt 0:01:01]} 14. Bb3 {[%emt 0:00:07]} Bb7 {[%emt 0:02:18]} 15. Nc3 {[%emt 0:06:29]} Nb6 {[%emt 0:03:40]} 16. a4 {[%emt 0:01:53]} Nc4 {[%emt 0:02:29]} 17. Bb4 {[%emt 0:07:35]} Nd5 {[%emt 0:05:16]} 18. Nxd5 {[%emt 0:01:57]} Bxd5 {[%emt 0:00:21]} 19. axb5 {[%emt 0:00:34]} axb5 {[%emt 0:00:13]} 20. Bc3 {[%emt 0:01:29]} O-O {[%emt 0:00:54]} 21. Bxc4 {[%emt 0:01:45]} bxc4 {[%emt 0:02:02]} 22. f3 {[%emt 0:03:16]} f6 {[%emt 0:01:33]} 23. Kf2 {[%emt 0:00:40]} Kf7 {[%emt 0:00:35]} 24. Bb4 {[%emt 0:01:40]} Rfb8 {[%emt 0:01:24]} 25. c3 {[%emt 0:00:48]} Rd8 {[%emt 0:01:51]} 26. Ke2 {[%emt 0:03:59]} e5 {[%emt 0:04:48]} 27. Red1 {[%emt 0:01:49]} 1/2-1/2

[Event "58th Akiba Rubinstein A 2022"]
[Site "Polanica-Zdroj"]
[Date "2022.08.19"]
[Round "7.15"]
[White "Paszkowski, Krystian"]
[Black "Skrzyczek, Tomasz"]
[Result "1-0"]
[ECO "D02"]
[WhiteElo "1988"]
[BlackElo "1909"]
[Annotator "NA RC"]
[PlyCount "69"]
[EventDate "2022.08.13"]
[EventCountry "POL"]
[SourceTitle "playchess.com"]
[Source "ChessBase"]
[SourceQuality "1"]
[TimeControl "40/5400+30:1800+30"]

1. Nf3 {[%emt 0:00:46]} d5 {[%emt 0:01:36]} 2. d4 {[%emt 0:00:05]} Nf6 {[%emt 0:00:14]} 3. c4 {[%emt 0:00:07]} e6 {[%emt 0:01:14]} 4. e3 {[%emt 0:00:05]} Be7 {[%emt 0:04:09]} 5. Bd3 {[%emt 0:03:10]} O-O {[%emt 0:00:43]} 6. O-O {[%emt 0:00:12]} dxc4 {[%emt 0:03:06]} 7. Bxc4 {[%emt 0:00:03]} c5 {[%emt 0:05:09]} 8. dxc5 {[%emt 0:19:55]} Bxc5 {[%emt 0:08:29]} 9. Qe2 {[%emt 0:00:08]} a6 {[%emt 0:02:33]} 10. Rd1 {[%emt 0:01:26]} Qc7 {[%emt 0:01:35]} 11. a3 {[%emt 0:33:58]} b5 {[%emt 0:02:41]} 12. Bd3 {[%emt 0:04:23]} Bb7 {[%emt 0:00:52]} 13. h3 {[%emt 0:02:46]} Nc6 {[%emt 0:13:09]} 14. b4 {[%emt 0:01:15]} Be7 {[%emt 0:00:11]} 15. Bb2 {[%emt 0:00:42]} Rad8 {[%emt 0:04:28]} 16. Nbd2 {[%emt 0:02:12]} Nd7 {[%emt 0:01:55]} 17. Rac1 {[%emt 0:07:34]} Qb8 {[%emt 0:01:25]} 18. Bb1 {[%emt 0:01:46]} Nce5 {[%emt 0:07:42]} 19. Nxe5 {[%emt 0:04:02]} Nxe5 {[%emt 0:01:43]} 20. Bxh7+ {[%emt 0:00:24]} Kxh7 {[%emt 0:01:15]} 21. Qh5+ {[%emt 0:00:07]} Kg8 {[%emt 0:00:02]} 22. Bxe5 {[%emt 0:00:18]} Qa8 {[%emt 0:09:18]} 23. Qg4 {[%emt 0:03:18]} g6 {[%emt 0:00:17]} 24. Rc7 {[%emt 0:03:57]} Rd5 {[%emt 0:00:03]} 25. Qg3 {[%emt 0:04:29]} Bd8 {[%emt 0:03:44]} 26. Rc5 {[%emt 0:01:39]} Rd3 {[%emt 0:02:23]} 27. h4 {[%emt 0:02:40]} Kh7 {[%emt 0:02:17]} 28. h5 {[%emt 0:01:32]} g5 {[%emt 0:00:37]} 29. Kh2 {[%emt 0:01:17]} f5 {[%emt 0:07:02]} 30. Nf3 {[%emt 0:00:41]} Rxd1 {[%emt 0:06:32]} 31. Nxg5+ {[%emt 0:00:02]} Kg8 {[%emt 0:00:01]} 32. Nh7+ {[%emt 0:00:40]} Kf7 {[%emt 0:00:43]} 33. Qg7+ {[%emt 0:00:28]} Ke8 {[%emt 0:00:01]} 34. Qxf8+ {[%emt 0:00:23]} Kd7 {[%emt 0:00:01]} 35. Qf7+ {[%emt 0:00:28]} 1-0

[Event "58th Akiba Rubinstein A 2022"]
[Site "Polanica-Zdroj"]
[Date "2022.08.20"]
[Round "8.1"]
[White "Kolodziejski, Piotr"]
[Black "Koziorowicz, Michal"]
[Result "1/2-1/2"]
[ECO "C00"]
[WhiteElo "2107"]
[BlackElo "2231"]
[Annotator "TA"]
[PlyCount "92"]
[EventDate "2022.08.13"]
[EventCountry "POL"]
[SourceTitle "playchess.com"]
[Source "ChessBase"]
[SourceQuality "1"]
[TimeControl "40/5400+30:1800+30"]

{[%evp 14,92,6,-14,-4,-4,-10,-15,0,2,0,9,45,0,0,0,22,-28,-39,-48,-2,-12,-3,-28,0,0,0,0,0,0,0,-21,-22,-17,-20,-31,-33,-28,-14,-10,-11,-10,-6,-10,0,-8,0,0,0,0,0,0,0,0,0,0,0,0,0,0,0,0,0,0,0,0,0,0,0,0,0,0,0,0,0,0,0,0,0,0,13]} 1. e4 {[%emt 0:00:02]} e6 {[%emt 0:05:51]} 2. d4 {[%emt 0:00:11]} d5 {[%emt 0:00:05]} 3. Bd3 {[%emt 0:01:45]} dxe4 {[%emt 0:00:23]} 4. Bxe4 {[%emt 0:00:05]} Nf6 {[%emt 0:00:04]} 5. Bf3 {[%emt 0:00:10]} c5 {[%emt 0:00:41]} 6. Ne2 {[%emt 0:02:26]} Nc6 {[%emt 0:01:08]} 7. c3 {[%emt 0:05:34]} cxd4 {[%emt 0:04:01]} 8. cxd4 {[%emt 0:00:26]} Be7 {[%emt 0:01:02] C01: French: Exchange Variation.} 9. Nbc3 {[%emt 0:00:57]} O-O {[%emt 0:00:26]} 10. O-O {[%emt 0:00:19]} Bd7 {[%emt 0:12:49]} 11. a3 {[%emt 0:04:38] [#]} Qb8 $146 {[%emt 0:09:08]} ({Predecessor:} 11... Qa5 12. Bf4 Rac8 13. Qd3 Qa6 14. Qxa6 bxa6 15. Rfd1 h6 16. Rac1 g5 17. Be3 Na5 {1-0 (39) Feuerstack,A (2429)-Kostin,A (2313) Sunny Beach 2013}) 12. Re1 {[%emt 0:15:34]} Bd6 {[%emt 0:05:39] Inhibits Bf4.} 13. g3 {[%emt 0:05:47]} (13. Bg5 $5 {[%cal Rg5f6]}) 13... Ne7 {[%emt 0:00:52]} 14. Nf4 {[%emt 0:09:23]} Bc6 {[%emt 0:02:04]} 15. Bxc6 {[%emt 0:05:02]} (15. d5 $142 Nexd5 16. Nfxd5 exd5 17. Bg5) 15... bxc6 $11 {[%emt 0:00:33]} 16. Qc2 {[%emt 0:06:29]} Ned5 {[%emt 0:01:52]} (16... Nf5 $15 {feels stronger.} 17. Be3 Nxe3 18. fxe3 c5) 17. Nd3 {[%emt 0:01:22]} Rc8 {[%emt 0:01:32]} 18. Bg5 {[%emt 0:05:29]} Nd7 {[%emt 0:05:46]} 19. Ne4 {[%emt 0:01:07]} h6 {[%emt 0:00:28]} 20. Bd2 {[%emt 0:03:14]} N5f6 {[%emt 0:11:00]} 21. Nxf6+ {[%emt 0:01:56]} Nxf6 {[%emt 0:00:07]} 22. Bf4 {[%emt 0:02:03]} Bxf4 {[%emt 0:02:03]} 23. Nxf4 {[%emt 0:00:04]} Qb6 {[%emt 0:01:25]} 24. Red1 {[%emt 0:04:15]} Nd5 {[%emt 0:01:26]} 25. Ne2 {[%emt 0:01:17]} c5 {[%emt 0:02:51]} 26. dxc5 {[%emt 0:01:12] The position is equal.} Rxc5 {[%emt 0:00:05][%cal Bc8c5,Bc5b5,Bb5f5][%mdl 32]} 27. Qd2 {[%emt 0:00:14]} a5 {[%emt 0:01:21]} 28. Rac1 {[%emt 0:02:35]} Rb5 {[%emt 0:01:27]} 29. Rc2 {[%emt 0:02:41]} Rb8 {[%emt 0:00:12][%cal Rb5b2]} 30. Nc3 {[%emt 0:02:00]} Nxc3 {[%emt 0:00:54]} ({Much less strong is} 30... Rxb2 31. Rxb2 Qxb2 32. Qxb2 Rxb2 33. Nxd5 $16) 31. Qxc3 {[%emt 0:01:08]} Rf5 {[%emt 0:02:54]} 32. Rd7 {[%emt 0:04:24]} h5 {[%emt 0:00:54]} 33. h4 {[%emt 0:01:49]} Qb5 {[%emt 0:02:12]} 34. Qd4 {[%emt 0:02:27]} Qb3 {[%emt 0:01:31]} 35. Rc5 {[%emt 0:03:20]} Rb5 {[%emt 0:05:02]} 36. Rxf5 {[%emt 0:02:33]} Rxf5 {[%emt 0:00:04][%mdl 4096] Endgame KQR-KQR} 37. Qc3 {[%emt 0:01:09]} Qb6 {[%emt 0:00:57]} 38. Rd2 {[%emt 0:01:20] Active counter play!} Qb7 {[%emt 0:00:56]} 39. Qe3 {[%emt 0:00:37]} Qc6 {[%emt 0:00:35]} 40. Rd8+ {[%emt 0:00:00]} Kh7 {[%emt 0:00:00]} 41. Rd4 {[%emt 0:03:50]} Qc2 {[%emt 0:06:01]} 42. Qd2 {[%emt 0:00:55]} Qb3 {[%emt 0:00:55]} 43. Rd3 {[%emt 0:00:59]} Qb7 {[%emt 0:00:58]} 44. Rc3 {[%emt 0:01:20]} Qe4 {[%emt 0:00:43]} 45. Re3 {[%emt 0:00:40]} Qa4 {[%emt 0:01:11]} 46. Qe2 {[%emt 0:00:53]} Qc6 {[%emt 0:01:59] Weighted Error Value: White=0.04 (flawless) /Black=0.05 (flawless)} 1/2-1/2

[Event "58th Akiba Rubinstein A 2022"]
[Site "Polanica-Zdroj"]
[Date "2022.08.20"]
[Round "8.2"]
[White "Cyborowski, Lukasz"]
[Black "Bugajski, Robert"]
[Result "1-0"]
[ECO "B90"]
[WhiteElo "2483"]
[BlackElo "2075"]
[Annotator "TA"]
[PlyCount "61"]
[EventDate "2022.08.13"]
[EventCountry "POL"]
[SourceTitle "playchess.com"]
[Source "ChessBase"]
[SourceQuality "1"]
[TimeControl "40/5400+30:1800+30"]

{[%evp 16,61,28,-13,43,38,56,-25,41,-18,-7,-15,0,-28,-31,-42,13,-28,39,0,21,29,71,74,116,121,129,126,193,201,207,205,283,182,251,245,344,344,642,689,882,874,1978,2001,29990,29990,29997,-89]} 1. e4 {[%emt 0:00:05]} c5 {[%emt 0:00:08]} 2. Nf3 {[%emt 0:00:14]} d6 {[%emt 0:00:08]} 3. d4 {[%emt 0:00:11]} cxd4 {[%emt 0:00:07]} 4. Nxd4 {[%emt 0:00:05]} Nf6 {[%emt 0:00:07]} 5. Nc3 {[%emt 0:00:05]} a6 {[%emt 0:00:07]} 6. Be3 {[%emt 0:00:14]} e5 {[%emt 0:00:15]} 7. Nb3 {[%emt 0:00:07]} Be6 {[%emt 0:00:25]} 8. Qd2 {[%emt 0:00:06]} Nbd7 {[%emt 0:00:29]} 9. f4 {[%emt 0:00:33][%cal Bf2f4,Bf4f5][%mdl 32]} Rc8 {[%emt 0:09:43] is currently scoring better than 9...b5. B90: Sicilian Najdorf: Unusual White 6th moves, 6 Be3 Ng4 and 6 Be3 e5.} (9... b5 $11) 10. f5 $14 {[%emt 0:21:29]} Bc4 {[%emt 0:02:34]} 11. O-O-O {[%emt 0:00:13]} (11. Bxc4 $1 $14 Rxc4 12. Qd3) 11... Be7 {[%emt 0:01:59]} (11... b5 $1 $11) 12. Kb1 {[%emt 0:01:08]} ({Better is} 12. Bxc4 $14 Rxc4 13. Qd3) 12... b5 $1 $11 {[%emt 0:02:30]} 13. g4 {[%emt 0:12:26]} h6 {[%emt 0:09:50]} (13... Nxg4 {is interesting.} 14. Rg1 h5 15. h3 Nxe3 16. Qxe3 Qb6) 14. Rg1 {[%emt 0:08:49]} Bxf1 {[%emt 0:19:40]} 15. Rdxf1 {[%emt 0:05:36] [#]} Qc7 $146 {[%emt 0:11:31]} (15... b4 $15 16. Nd5 a5) ({Predecessor:} 15... b4 16. Nd5 Nxd5 17. Qxd5 Qc7 18. Qd3 Bg5 19. Rc1 Bxe3 20. Qxe3 Qb6 21. Qd3 Rc6 {1-0 (63) Mastrovasilis,D (2604)-Damljanovic,B (2611) Valjevo 2011}) 16. Qd3 {[%emt 0:05:47]} Qc4 {[%emt 0:04:23]} ({Black should try} 16... b4 $11 17. Nd5 Nxd5 18. exd5 a5) 17. Nd2 {[%emt 0:00:25]} Qc6 {[%emt 0:02:30]} 18. Nd5 {[%emt 0:10:08]} Nc5 {[%emt 0:04:53]} 19. Bxc5 {[%emt 0:01:31]} dxc5 {[%emt 0:01:31]} 20. c4 {[%emt 0:00:45] 0x0.0005ed3d38c6dp-1022s more active pieces.} Rd8 {[%emt 0:02:38] [#]} 21. Rd1 $1 {[%emt 0:00:39]} Nxd5 {[%emt 0:01:33]} (21... Qb6 $16) 22. exd5 $18 {[%emt 0:00:57]} ({Resist} 22. cxd5 $6 Qd6 $14) 22... Qb6 {[%emt 0:02:32]} 23. Ne4 {[%emt 0:01:13] d6 is the strong threat.} O-O {[%emt 0:01:01]} 24. Rg2 {[%emt 0:08:53][%cal Oh2h4,Bg1g2,Bg2h2,Bh2h8][%mdl 32]} Rd7 {[%emt 0:02:08]} (24... bxc4 {keeps fighting.} 25. Qxc4 Qb8) 25. h4 {[%emt 0:05:23]} Bxh4 {[%emt 0:01:20]} (25... bxc4 {was necessary.} 26. Qxc4 Bxh4) 26. Qh3 {[%emt 0:03:40]} Bg5 $2 {[%emt 0:01:30]} (26... g5 27. d6 Kh8) 27. Nxg5 {[%emt 0:06:33]} hxg5 {[%emt 0:00:03]} 28. Rh2 {[%emt 0:00:09][%csl Gh2][%cal Rh3h8]} f6 {[%emt 0:06:08] [#]} 29. Qh5 $1 {[%emt 0:00:03] Threatening mate with Rdh1.} ({And not} 29. Qh7+ Kf7 $11) 29... Rb8 {[%emt 0:07:19]} 30. Qg6 {[%emt 0:00:11]} Rf7 {[%emt 0:04:20] [#]} 31. Rh8+ $3 {[%emt 0:00:10][%mdl 33280] Weighted Error Value: White=0.21 (precise) /Black=0.78. Loss on time!?} 1-0